bitfinex/quotes_BTCUSD_20250204
["timestamp","ask_amount","ask_price","bid_price","bid_amount"]
[1738632118634,0.00122408,100970.0,100960.0,0.47141061]
[1738632118817,0.00122408,100970.0,100960.0,0.48137061]
[1738632120630,0.01122408,100970.0,100960.0,0.48137061]
[1738632121003,0.01122408,100970.0,100960.0,0.44176661]
[1738632123539,0.09112408,100970.0,100960.0,0.44176661]
[1738632123741,0.10112408,100970.0,100960.0,0.44176661]
[1738632125480,0.12812408,100970.0,100960.0,0.29176661]
[1738632126087,0.14812408,100970.0,100960.0,0.29176661]
[1738632126288,0.14812408,100970.0,100960.0,0.44176661]
[1738632126513,0.13812408,100970.0,100960.0,0.44176661]
[1738632126687,0.12712408,100970.0,100960.0,0.44176661]
[1738632126906,0.14812408,100970.0,100960.0,0.44176661]
[1738632127171,0.14712408,100970.0,100960.0,0.44176661]
[1738632127608,0.13812408,100970.0,100960.0,0.44176661]
[1738632127808,0.12812408,100970.0,100960.0,0.44176661]
[1738632129257,0.14812408,100970.0,100960.0,0.44176661]
[1738632129459,0.13812408,100970.0,100960.0,0.44176661]
[1738632129863,0.14812408,100970.0,100960.0,0.44176661]
[1738632130635,0.13812408,100970.0,100960.0,0.44176661]
[1738632130979,0.12812408,100970.0,100960.0,0.44176661]
[1738632131176,0.12812408,100970.0,100960.0,0.29176661]
[1738632132974,0.12812408,100970.0,100960.0,0.26102476]
[1738632134725,0.12789936,100970.0,100960.0,0.26102476]
[1738632139656,0.12972428,100990.0,100980.0,0.148544]
[1738632139810,0.13019904,100990.0,100980.0,0.40092906]
[1738632142562,0.00069904,100990.0,100980.0,0.40092906]
[1738632143184,0.148548,100980.0,100960.0,0.0100667]
[1738632143410,0.229748,100980.0,100960.0,0.11245176]
[1738632143545,0.1295,100970.0,100960.0,0.11245176]
[1738632143753,0.1295,100970.0,100960.0,0.26102476]
[1738632150166,0.1295,100970.0,100960.0,0.11245176]
[1738632150361,0.1295,100970.0,100960.0,0.0100667]
[1738632152724,0.12972428,100970.0,100960.0,0.0100667]
[1738632153065,0.12972428,100970.0,100960.0,0.1586397]
[1738632153915,0.27828228,100970.0,100960.0,0.0100667]
[1738632154095,0.16611051,100970.0,100960.0,0.0100667]
[1738632154292,0.12972428,100970.0,100960.0,0.1586397]
[1738632154947,0.12972428,100970.0,100960.0,0.0100667]
[1738632155971,0.12972428,100970.0,100960.0,0.1586397]
[1738632157539,0.12972428,100970.0,100960.0,0.0100667]
[1738632158650,0.12972428,100970.0,100960.0,0.1586397]
[1738632160300,0.12972428,100970.0,100960.0,0.0100667]
[1738632160512,0.12972428,100970.0,100960.0,0.1586397]
[1738632160881,0.12972428,100970.0,100960.0,0.26102476]
[1738632163068,0.12972428,100970.0,100960.0,0.11245176]
[1738632163747,0.27828228,100970.0,100960.0,0.0100667]
[1738632163950,0.12972428,100970.0,100960.0,0.0100667]
[1738632164282,1.62972428,100970.0,100960.0,0.0100667]
[1738632164797,0.12972428,100970.0,100960.0,0.0100667]
[1738632167118,0.12972428,100970.0,100960.0,0.26102476]
[1738632167259,0.00022428,100970.0,100960.0,0.26102476]
[1738632173339,0.04772428,100970.0,100960.0,0.26102476]
[1738632174169,0.04772428,100970.0,100960.0,0.0100667]
[1738632174391,0.12452428,100970.0,100960.0,0.0100667]
[1738632174771,1.62452428,100970.0,100960.0,0.0100667]
[1738632175719,0.29608228,100970.0,100960.0,0.0100667]
[1738632176057,1.79608228,100970.0,100960.0,0.0100667]
[1738632177138,0.12452428,100970.0,100960.0,0.0100667]
[1738632177280,0.12452428,100970.0,100960.0,0.1586397]
[1738632177683,0.12452428,100970.0,100960.0,0.0100667]
[1738632178234,0.12452428,100970.0,100960.0,0.1586397]
[1738632178434,0.12452428,100970.0,100960.0,0.0100667]
[1738632179591,0.12452428,100970.0,100960.0,0.1586397]
[1738632180344,0.12452428,100970.0,100960.0,0.26102476]
[1738632180553,0.00022428,100970.0,100960.0,0.26102476]
[1738632182588,0.00022428,100970.0,100960.0,0.29191251]
[1738632183619,0.00022428,100970.0,100960.0,0.44191251]
[1738632184774,0.00022428,100970.0,100960.0,0.52501251]
[1738632189055,0.00022428,100970.0,100960.0,0.5239285]
[1738632190094,0.00022428,100970.0,100960.0,0.4408285]
[1738632190588,0.00022428,100970.0,100960.0,0.40994075]
[1738632198333,0.00022428,100970.0,100960.0,0.41004745]
[1738632198739,0.32562428,100970.0,100960.0,0.26004745]
[1738632199294,0.32562428,100970.0,100960.0,0.41004745]
[1738632199503,0.32732752,100970.0,100960.0,0.0001067]
[1738632199696,0.37402752,100970.0,100960.0,0.0001067]
[1738632200306,0.29438228,100970.0,100960.0,0.0001067]
[1738632200512,0.30438228,100970.0,100960.0,0.0001067]
[1738632200722,0.15338428,100970.0,100960.0,0.1486797]
[1738632200926,0.15338428,100970.0,100960.0,0.0001067]
[1738632201709,0.13038428,100970.0,100960.0,0.1486797]
[1738632201881,0.13038428,100970.0,100960.0,0.0001067]
[1738632202325,0.27894228,100970.0,100960.0,0.0001067]
[1738632202902,0.30194228,100970.0,100960.0,0.0001067]
[1738632203124,0.31194228,100970.0,100960.0,0.0001067]
[1738632203942,0.30194228,100970.0,100960.0,0.0001067]
[1738632205152,0.15338428,100970.0,100960.0,0.1486797]
[1738632205360,0.15338428,100970.0,100960.0,0.0001067]
[1738632205515,0.30194228,100970.0,100960.0,0.0001067]
[1738632205716,0.38867738,100970.0,100960.0,0.0001067]
[1738632205918,0.30194228,100970.0,100960.0,0.0001067]
[1738632206453,0.31194228,100970.0,100960.0,0.0001067]
[1738632206617,0.30194228,100970.0,100960.0,0.0001067]
[1738632207482,0.15338428,100970.0,100960.0,0.5001067]
[1738632207643,0.30194228,100970.0,100960.0,0.5001067]
[1738632209384,0.30194228,100970.0,100960.0,0.49988198]
[1738632209951,0.30194228,100970.0,100960.0,0.49998878]
[1738632210551,0.34710597,100970.0,100960.0,0.49998878]
[1738632210970,0.31194228,100970.0,100960.0,0.49998878]
[1738632211391,0.34124464,100970.0,100960.0,0.49998878]
[1738632211599,1.84124464,100970.0,100960.0,0.49998878]
[1738632212245,2.00124464,100970.0,100960.0,0.49998878]
[1738632213387,1.99124464,100970.0,100960.0,0.49998878]
[1738632213607,2.00124464,100970.0,100960.0,0.49998878]
[1738632213990,0.49124464,100970.0,100960.0,0.49998878]
[1738632215112,0.59373936,100970.0,100960.0,0.49998878]
[1738632215471,0.5960697,100970.0,100960.0,0.49998878]
[1738632215677,0.5836297,100970.0,100960.0,0.49998878]
[1738632216414,0.60979655,100970.0,100960.0,0.49998878]
[1738632216611,0.60223655,100970.0,100960.0,0.37188878]
[1738632216870,0.73534218,100970.0,100960.0,0.37188878]
[1738632217247,0.70603982,100970.0,100960.0,0.28226878]
[1738632217448,0.446888,100950.0,100940.0,0.0001067]
[1738632217651,0.227247,100910.0,100900.0,0.08859087]
[1738632217853,0.27641385,100910.0,100900.0,0.08859087]
[1738632218055,0.36263206,100910.0,100900.0,0.08859087]
[1738632218269,0.43500404,100910.0,100900.0,0.08859087]
[1738632218472,0.410247,100910.0,100900.0,0.08859087]
[1738632218679,0.410247,100910.0,100900.0,0.08863834]
[1738632218873,0.410247,100910.0,100900.0,4.747e-05]
[1738632219455,0.400247,100910.0,100900.0,4.747e-05]
[1738632219862,0.410247,100910.0,100900.0,4.747e-05]
[1738632221453,0.400247,100910.0,100900.0,4.747e-05]
[1738632221696,0.407807,100910.0,100900.0,4.747e-05]
[1738632222101,0.407807,100910.0,100900.0,0.00015427]
[1738632222684,0.417807,100910.0,100900.0,0.00015427]
[1738632223284,0.52030172,100910.0,100900.0,0.00015427]
[1738632223720,0.417807,100910.0,100900.0,0.00015427]
[1738632224887,0.407807,100910.0,100900.0,0.00015427]
[1738632225086,0.400247,100910.0,100900.0,0.00015427]
[1738632225223,0.407807,100910.0,100900.0,0.00015427]
[1738632226015,0.417807,100910.0,100900.0,0.00015427]
[1738632226223,0.47092344,100910.0,100900.0,0.00015427]
[1738632226825,0.417807,100910.0,100900.0,0.00015427]
[1738632227039,0.427807,100910.0,100900.0,0.00015427]
[1738632227240,0.417807,100910.0,100900.0,0.00015427]
[1738632227682,0.54969564,100910.0,100900.0,0.00015427]
[1738632228004,0.56207044,100910.0,100900.0,0.00015427]
[1738632228209,0.4201818,100910.0,100900.0,0.00015427]
[1738632229117,0.0123748,100910.0,100900.0,0.14881627]
[1738632229489,0.18541552,100920.0,100900.0,0.34702127]
[1738632229669,0.18541552,100920.0,100900.0,0.54522527]
[1738632229879,0.38359152,100920.0,100900.0,0.54522527]
[1738632230080,0.58177252,100920.0,100900.0,0.54522527]
[1738632230488,0.55256,100920.0,100900.0,0.54522527]
[1738632230691,0.55256,100920.0,100900.0,0.34702027]
[1738632230919,0.97206016,100930.0,100910.0,0.148643]
[1738632231134,0.46656552,100930.0,100910.0,0.346833]
[1738632231345,0.66472852,100930.0,100910.0,0.346833]
[1738632231555,0.79661716,100930.0,100910.0,0.346833]
[1738632231910,0.16684483,100920.0,100900.0,0.69481333]
[1738632232373,0.16684483,100920.0,100910.0,0.148647]
[1738632232718,0.01821283,100920.0,100910.0,0.148647]
[1738632233332,0.79662316,100930.0,100910.0,0.148647]
[1738632233539,0.99479316,100930.0,100910.0,0.148647]
[1738632233750,1.04614187,100930.0,100910.0,0.148647]
[1738632233929,0.79662316,100930.0,100910.0,0.148647]
[1738632234129,0.148632,100920.0,100910.0,0.148647]
[1738632235124,0.79662316,100930.0,100910.0,0.148647]
[1738632235733,0.79662316,100930.0,100910.0,0.346839]
[1738632236085,0.04739355,100920.0,100910.0,0.346839]
[1738632236356,0.04739355,100920.0,100910.0,0.148647]
[1738632237485,0.79662316,100930.0,100910.0,0.346839]
[1738632238763,0.79662316,100930.0,100910.0,0.148647]
[1738632239355,0.04745905,100920.0,100910.0,0.148647]
[1738632240850,0.79662316,100930.0,100910.0,0.346842]
[1738632241067,0.11221252,100930.0,100920.0,0.148632]
[1738632241277,0.02921252,100930.0,100920.0,0.148632]
[1738632241678,0.95268444,100940.0,100920.0,0.346807]
[1738632242285,1.15083344,100940.0,100920.0,0.346807]
[1738632242478,0.94268444,100940.0,100920.0,0.346807]
[1738632242680,0.94268344,100940.0,100920.0,0.346802]
[1738632242836,0.95268344,100940.0,100920.0,0.346802]
[1738632243177,0.94268344,100940.0,100920.0,0.346802]
[1738632243339,0.04750828,100930.0,100920.0,0.148632]
[1738632244944,0.1856098,100940.0,100920.0,0.593575]
[1738632245149,0.148617,100930.0,100920.0,0.197232]
[1738632245343,0.28050564,100930.0,100910.0,0.58110806]
[1738632245569,0.47866764,100930.0,100910.0,0.77929906]
[1738632245771,0.47866764,100930.0,100910.0,0.76933806]
[1738632245974,0.28050564,100930.0,100920.0,0.1487388]
[1738632246183,0.148617,100930.0,100920.0,0.1487388]
[1738632247069,0.148617,100930.0,100920.0,0.0001068]
[1738632247498,0.148617,100930.0,100920.0,0.1487388]
[1738632248302,0.68458392,100940.0,100920.0,0.3469148]
[1738632248732,0.04760246,100930.0,100920.0,0.3469088]
[1738632249487,0.19621946,100930.0,100920.0,0.1487388]
[1738632249982,0.68457992,100940.0,100920.0,0.1487388]
[1738632250159,0.68457992,100940.0,100920.0,0.3469078]
[1738632250298,0.88272992,100940.0,100920.0,0.3469078]
[1738632250502,0.28050564,100930.0,100920.0,0.0001068]
[1738632252739,0.79206548,100940.0,100920.0,0.1487378]
[1738632253039,0.148617,100930.0,100920.0,0.0001068]
[1738632254849,0.76277992,100940.0,100920.0,0.1487388]
[1738632255055,0.35454428,100940.0,100920.0,0.3469088]
[1738632255200,0.35454428,100940.0,100920.0,0.41056599]
[1738632255395,0.55268928,100940.0,100920.0,0.41056599]
[1738632255625,0.01831301,100930.0,100920.0,0.21239599]
[1738632255790,0.01831301,100930.0,100920.0,0.1487388]
[1738632256895,0.35454428,100940.0,100920.0,0.3469098]
[1738632257258,0.55268628,100940.0,100920.0,0.3469098]
[1738632257440,0.00022428,100940.0,100930.0,0.148617]
[1738632257589,0.00022428,100940.0,100930.0,0.273217]
[1738632257773,0.00022428,100940.0,100930.0,0.37560206]
[1738632260209,0.00022428,100940.0,100930.0,0.52560206]
[1738632260976,0.00022428,100940.0,100930.0,0.53716788]
[1738632265864,0.00022428,100940.0,100930.0,0.38716788]
[1738632266228,0.14882728,100940.0,100930.0,0.10238506]
[1738632266718,0.00022428,100940.0,100930.0,0.25100206]
[1738632267831,0.00022428,100940.0,100930.0,0.29990206]
[1738632268167,0.00022428,100940.0,100930.0,0.37520206]
[1738632276068,0.32562428,100940.0,100930.0,0.37520206]
[1738632278158,0.32562428,100940.0,100930.0,0.29990206]
[1738632281012,0.32562428,100940.0,100930.0,0.52900206]
[1738632284126,0.32562428,100940.0,100930.0,0.55979793]
[1738632287977,0.00022428,100940.0,100930.0,0.55979793]
[1738632294838,0.00022428,100940.0,100930.0,0.59941093]
[1738632300190,0.00022428,100940.0,100930.0,0.52031093]
[1738632300344,0.00022428,100940.0,100930.0,0.43179793]
[1738632300550,0.00022428,100940.0,100930.0,0.25100206]
[1738632300978,0.08042428,100940.0,100930.0,0.25100206]
[1738632303885,0.00022428,100940.0,100930.0,0.25100206]
[1738632305840,0.32562428,100940.0,100930.0,0.25100206]
[1738632317802,0.00022428,100940.0,100930.0,0.25100206]
[1738632318972,0.00022428,100940.0,100920.0,0.01189342]
[1738632318973,0.148617,100930.0,100920.0,0.01189342]
[1738632319154,0.35690564,100930.0,100920.0,0.0001068]
[1738632320576,0.0764,100930.0,100920.0,0.1487388]
[1738632320900,0.0764,100930.0,100920.0,0.25112386]
[1738632324032,0.225017,100930.0,100920.0,0.25112386]
[1738632324211,0.35690564,100930.0,100920.0,0.0001068]
[1738632324649,0.35681611,100930.0,100920.0,0.0001068]
[1738632325006,0.22492747,100930.0,100920.0,0.0001068]
[1738632325205,0.07631047,100930.0,100920.0,0.1487388]
[1738632325831,0.07631047,100930.0,100920.0,0.25112386]
[1738632327334,0.07608796,100930.0,100920.0,0.25112386]
[1738632331059,0.22470496,100930.0,100920.0,0.10249186]
[1738632331392,0.22470496,100930.0,100920.0,0.25112386]
[1738632332050,0.07608796,100930.0,100920.0,0.25112386]
[1738632337090,0.50702984,100940.0,100920.0,0.44929186]
[1738632337513,0.0183258,100930.0,100920.0,0.25112386]
[1738632338298,0.01855008,100930.0,100920.0,0.25112386]
[1738632338887,0.00022428,100930.0,100920.0,0.25112386]
[1738632340678,0.00022428,100930.0,100920.0,0.26215246]
[1738632348511,0.00022428,100930.0,100920.0,0.1487388]
[1738632349776,0.00022428,100930.0,100920.0,0.25112386]
[1738632353945,0.00022428,100930.0,100920.0,0.30052386]
[1738632359057,0.00022428,100930.0,100920.0,0.45052386]
[1738632359265,0.00022428,100930.0,100920.0,0.56211364]
[1738632359412,0.00022428,100930.0,100920.0,0.60173664]
[1738632363169,2.8e-07,100930.0,100920.0,0.60173664]
[1738632363366,2.8e-07,100930.0,100920.0,0.62473664]
[1738632367596,2.8e-07,100930.0,100920.0,0.83473664]
[1738632370877,0.00022428,100940.0,100930.0,0.448817]
[1738632370878,0.00018456,100940.0,100930.0,0.448817]
[1738632371036,0.00018456,100940.0,100930.0,0.58209184]
[1738632374892,0.00018456,100940.0,100930.0,0.59335847]
[1738632376368,0.00018456,100940.0,100930.0,0.57035847]
[1738632376948,0.00018456,100940.0,100930.0,0.59335847]
[1738632377149,0.3254,100960.0,100930.0,0.59335847]
[1738632377351,0.00022428,100970.0,100960.0,0.426673]
[1738632377531,0.00022428,100970.0,100960.0,0.52905806]
[1738632381643,0.00022428,100970.0,100960.0,0.44645806]
[1738632384041,0.00022428,100970.0,100960.0,0.45771763]
[1738632387595,0.00022428,100970.0,100960.0,0.41221763]
[1738632392384,0.00022428,100970.0,100960.0,0.26221763]
[1738632392747,0.07662428,100970.0,100960.0,0.26221763]
[1738632393078,0.07662428,100970.0,100960.0,0.25095806]
[1738632393342,0.0815,100960.0,100950.0,0.148588]
[1738632393470,0.0815,100960.0,100950.0,0.25102053]
[1738632398289,0.1281,100960.0,100950.0,0.25102053]
[1738632402992,0.07862428,100970.0,100960.0,0.148573]
[1738632403194,0.07862428,100970.0,100960.0,0.25095806]
[1738632405579,0.00022428,100970.0,100960.0,0.25095806]
[1738632409667,0.00022428,100970.0,100960.0,0.26171477]
[1738632420214,0.07882428,100970.0,100960.0,0.25095806]
[1738632420427,0.12552428,100970.0,100960.0,0.148573]
[1738632421204,0.27408228,100970.0,100960.0,0.148573]
[1738632421415,0.19548228,100970.0,100950.0,0.55565697]
[1738632421621,0.229973,100960.0,100950.0,4.747e-05]
[1738632421825,0.229973,100960.0,100950.0,0.14863547]
[1738632422026,0.0814,100960.0,100950.0,0.14863547]
[1738632423149,0.229973,100960.0,100950.0,0.14863547]
[1738632423347,0.0814,100960.0,100950.0,0.14863547]
[1738632424985,0.229973,100960.0,100950.0,0.14863547]
[1738632425425,0.0814,100960.0,100950.0,0.25102053]
[1738632425755,0.04692428,100970.0,100960.0,0.148573]
[1738632425756,0.00022428,100970.0,100960.0,0.148573]
[1738632425941,0.00022428,100970.0,100960.0,0.25095806]
[1738632426560,0.00022428,100970.0,100960.0,0.40095806]
[1738632426779,0.00022428,100970.0,100960.0,0.53085806]
[1738632427443,0.00022428,100970.0,100960.0,0.54233806]
[1738632431829,0.00022428,100970.0,100960.0,0.57316228]
[1738632432375,0.00022428,100970.0,100960.0,0.58390274]
[1738632435694,2.8e-07,100970.0,100960.0,0.60690274]
[1738632435895,3.6e-07,100980.0,100970.0,0.421958]
[1738632436061,3.6e-07,100980.0,100970.0,0.55516728]
[1738632436684,3.6e-07,100980.0,100970.0,0.52434306]
[1738632437091,3.6e-07,100980.0,100970.0,0.55513258]
[1738632438529,3.6e-07,100980.0,100970.0,0.52434306]
[1738632439530,3.6e-07,100980.0,100970.0,0.55511361]
[1738632440192,3.6e-07,100980.0,100970.0,0.52434306]
[1738632440508,3.6e-07,100980.0,100970.0,0.55510953]
[1738632441166,0.00022428,100990.0,100970.0,0.57810953]
[1738632441371,6.2e-07,101000.0,100990.0,0.346429]
[1738632441576,6.2e-07,101000.0,100990.0,0.52701406]
[1738632442645,0.00047538,101000.0,100990.0,0.52701406]
[1738632444573,0.00013496,101010.0,101000.0,0.148514]
[1738632444777,0.00027733,101010.0,101000.0,0.25221559]
[1738632444939,0.00027733,101010.0,101000.0,0.25089906]
[1738632448895,0.07537733,101010.0,101000.0,0.25089906]
[1738632449311,0.07537733,101010.0,101000.0,0.40089906]
[1738632450817,0.07541733,101010.0,101000.0,0.40089906]
[1738632454999,0.00031733,101010.0,101000.0,0.40089906]
[1738632455210,3.3e-07,101010.0,101000.0,0.47939906]
[1738632455384,2.8e-07,101020.0,101010.0,0.2985]
[1738632455581,0.32564408,101030.0,101020.0,0.376985]
[1738632455901,5.1e-07,101030.0,101020.0,0.55849299]
[1738632457142,5.1e-07,101030.0,101020.0,0.76849299]
[1738632458142,5.1e-07,101030.0,101020.0,0.68999299]
[1738632458343,5.1e-07,101030.0,101020.0,0.65937006]
[1738632458501,5.1e-07,101030.0,101020.0,0.52927006]
[1738632458718,5.1e-07,101030.0,101020.0,0.55986459]
[1738632459436,5.1e-07,101030.0,101020.0,0.52927006]
[1738632459642,4.051e-05,101030.0,101020.0,0.52927006]
[1738632459840,4.051e-05,101030.0,101020.0,0.53984561]
[1738632460007,0.00014429,101040.0,101030.0,0.14847]
[1738632460202,0.00014429,101040.0,101030.0,0.25217117]
[1738632460426,0.00014429,101040.0,101030.0,0.25085506]
[1738632462823,0.00014429,101040.0,101030.0,0.40085506]
[1738632463244,2.9e-07,101040.0,101030.0,0.40085506]
[1738632465461,2.9e-07,101040.0,101030.0,0.57924874]
[1738632467510,0.00018437,101050.0,101040.0,0.298456]
[1738632467710,0.00018437,101050.0,101040.0,0.40084106]
[1738632467912,3.7e-07,101050.0,101040.0,0.40084106]
[1738632468321,4.5e-07,101060.0,101050.0,0.321441]
[1738632468533,2.8e-07,101070.0,101060.0,0.345426]
[1738632468785,0.00014261,101070.0,101060.0,0.40081106]
[1738632469022,0.00014261,101070.0,101060.0,0.25081106]
[1738632469023,0.45484261,101070.0,101060.0,0.25081106]
[1738632469726,0.45484261,101070.0,101060.0,0.148426]
[1738632469947,0.0817,101060.0,101050.0,0.346346]
[1738632470160,0.0817,101060.0,101050.0,0.44873106]
[1738632475266,0.4071,101060.0,101050.0,0.44873106]
[1738632476507,0.4555,101060.0,101050.0,0.44873106]
[1738632477125,0.4555,101060.0,101050.0,0.346346]
[1738632477538,0.45572408,101060.0,101050.0,0.346346]
[1738632480370,0.4064,101050.0,101040.0,0.395868]
[1738632480567,0.104,101050.0,101040.0,0.197928]
[1738632481776,0.1536,101050.0,101040.0,0.197928]
[1738632489292,0.1536,101050.0,101040.0,0.1980346]
[1738632490323,0.302041,101050.0,101040.0,0.0001066]
[1738632492372,0.302041,101050.0,101040.0,0.1485626]
[1738632492560,0.302041,101050.0,101040.0,0.0001066]
[1738632494275,0.302041,101050.0,101040.0,0.1485626]
[1738632494474,0.1536,101050.0,101040.0,0.1485626]
[1738632495930,0.1306,101050.0,101040.0,0.1485626]
[1738632496145,0.081,101050.0,101040.0,0.1485626]
[1738632496907,0.13022408,101060.0,101050.0,0.148441]
[1738632497113,0.08062408,101060.0,101050.0,0.148441]
[1738632497974,0.08062408,101060.0,101050.0,0.25082606]
[1738632498178,0.00022408,101060.0,101050.0,0.25082606]
[1738632500328,0.00022408,101060.0,101050.0,0.26157283]
[1738632502214,0.32562408,101060.0,101050.0,0.26157283]
[1738632502586,0.32562408,101060.0,101050.0,0.29233287]
[1738632507850,0.00022408,101060.0,101050.0,0.29233287]
[1738632513724,0.00022408,101060.0,101050.0,0.26157283]
[1738632517358,0.00022408,101060.0,101050.0,0.41157283]
[1738632517667,0.00022408,101060.0,101050.0,0.44233039]
[1738632523141,0.00022408,101060.0,101050.0,0.56903039]
[1738632523376,0.00022408,101060.0,101050.0,0.56913699]
[1738632528000,6.9e-07,101070.0,101060.0,0.425926]
[1738632528195,6.9e-07,101070.0,101060.0,0.55906862]
[1738632535798,0.00022428,101080.0,101060.0,0.58206862]
[1738632535799,9.7e-07,101080.0,101060.0,0.58206862]
[1738632536033,0.32562408,101090.0,101080.0,0.298397]
[1738632536155,0.00022408,101090.0,101080.0,0.43153962]
[1738632538305,0.00022408,101090.0,101080.0,0.47109762]
[1738632540116,0.00022408,101090.0,101080.0,0.4819597]
[1738632546839,0.00022408,101090.0,101080.0,0.41164414]
[1738632546996,0.07642408,101090.0,101080.0,0.411868]
[1738632548512,0.00022408,101090.0,101080.0,0.411868]
[1738632549347,0.00022408,101090.0,101080.0,0.44260153]
[1738632556030,0.00022408,101090.0,101080.0,0.51920153]
[1738632560341,0.14319193,101110.0,101100.0,0.148367]
[1738632560520,0.14366648,101110.0,101100.0,0.25075206]
[1738632561309,0.14366648,101110.0,101100.0,0.28156147]
[1738632561786,0.42056648,101110.0,101100.0,0.28156147]
[1738632564250,0.34146648,101110.0,101100.0,0.28156147]
[1738632565548,0.34146648,101110.0,101100.0,0.43156147]
[1738632565745,0.34146648,101110.0,101100.0,0.47936147]
[1738632566513,0.34146648,101110.0,101100.0,0.48994456]
[1738632567294,0.01606648,101110.0,101100.0,0.48994456]
[1738632571172,0.01606648,101110.0,101100.0,0.56964456]
[1738632574284,0.01606648,101110.0,101100.0,0.60919356]
[1738632574993,4.8e-07,101110.0,101100.0,0.63219356]
[1738632575976,0.0085424,101130.0,101120.0,0.426938]
[1738632575977,4e-07,101130.0,101120.0,0.426938]
[1738632576178,0.00022408,101150.0,101140.0,0.298309]
[1738632576378,0.00022408,101150.0,101140.0,0.40069406]
[1738632576574,0.08306638,101150.0,101140.0,0.40069406]
[1738632580280,0.08306638,101150.0,101140.0,0.41113839]
[1738632584421,0.00036638,101150.0,101140.0,0.41113839]
[1738632587672,0.00028408,101170.0,101140.0,0.57253839]
[1738632587875,0.00022387,101180.0,101170.0,0.15]
[1738632588083,0.00022387,101180.0,101170.0,0.44906432]
[1738632588282,8.7e-07,101180.0,101170.0,0.44775006]
[1738632588731,8.7e-07,101180.0,101170.0,0.5013728]
[1738632590222,6.5e-07,101180.0,101170.0,0.5013728]
[1738632590430,6.5e-07,101180.0,101170.0,0.4783728]
[1738632590774,6.5e-07,101180.0,101170.0,0.44775006]
[1738632591566,0.07791784,101200.0,101190.0,0.148235]
[1738632591771,0.07791784,101200.0,101190.0,0.25062006]
[1738632595543,1.784e-05,101200.0,101190.0,0.40062006]
[1738632596786,1.784e-05,101200.0,101190.0,0.41098436]
[1738632603891,0.08101784,101200.0,101190.0,0.41098436]
[1738632604431,0.0796,101190.0,101180.0,0.19765]
[1738632604632,0.0796,101190.0,101180.0,0.30003506]
[1738632604864,0.07661784,101200.0,101190.0,0.148235]
[1738632605037,1.784e-05,101200.0,101190.0,0.46521297]
[1738632607170,1.784e-05,101200.0,101190.0,0.40062006]
[1738632612282,1.784e-05,101200.0,101190.0,0.4107303]
[1738632612912,1.784e-05,101200.0,101190.0,0.44133977]
[1738632613097,1.784e-05,101200.0,101190.0,0.51853977]
[1738632613317,1.784e-05,101200.0,101190.0,0.58883977]
[1738632614816,0.01536254,101210.0,101200.0,0.298221]
[1738632615050,0.01536254,101210.0,101200.0,0.43121553]
[1738632615848,0.01536254,101210.0,101200.0,0.25060606]
[1738632616277,0.01536254,101210.0,101200.0,0.40060606]
[1738632616432,0.09306254,101210.0,101200.0,0.40060606]
[1738632617062,0.09306254,101210.0,101200.0,0.148221]
[1738632618024,0.43888454,101210.0,101190.0,0.15856931]
[1738632618226,0.148221,101200.0,101190.0,0.26271937]
[1738632618432,0.81369454,101210.0,101190.0,0.11271937]
[1738632618769,0.225221,101200.0,101190.0,0.00022407]
[1738632618995,0.274721,101200.0,101190.0,0.00022407]
[1738632619352,0.297721,101200.0,101190.0,0.00022407]
[1738632620308,0.32710256,101200.0,101190.0,0.00022407]
[1738632621487,1.82710256,101200.0,101190.0,0.00022407]
[1738632621807,0.297721,101200.0,101190.0,0.00022407]
[1738632622250,1.797721,101200.0,101190.0,0.00022407]
[1738632623393,1.797721,101200.0,101190.0,0.14845907]
[1738632623617,1.797721,101200.0,101190.0,0.19789518]
[1738632623836,1.774721,101200.0,101190.0,0.19789518]
[1738632624015,1.774721,101200.0,101190.0,0.00022407]
[1738632624234,1.797721,101200.0,101190.0,0.00022407]
[1738632625408,2.04125428,101200.0,101190.0,0.00022407]
[1738632625619,2.20125428,101200.0,101190.0,0.00022407]
[1738632626031,2.07010606,101200.0,101190.0,0.00022407]
[1738632626232,2.13086025,101200.0,101190.0,0.00022407]
[1738632626827,0.63086025,101200.0,101190.0,0.00022407]
[1738632627255,0.76200847,101200.0,101190.0,0.00022407]
[1738632627477,0.74200847,101200.0,101190.0,0.00022407]
[1738632629155,0.75218768,101200.0,101190.0,0.00022407]
[1738632629356,0.69143349,101200.0,101190.0,0.00022407]
[1738632630018,0.57028527,101200.0,101190.0,0.00022407]
[1738632630343,0.282121,101200.0,101190.0,0.00022407]
[1738632630499,0.077,101200.0,101190.0,0.14845907]
[1738632630703,0.09626924,101210.0,101200.0,0.148221]
[1738632630911,0.01546924,101210.0,101200.0,0.148221]
[1738632631266,0.16367524,101210.0,101200.0,0.148221]
[1738632631681,0.36128524,101210.0,101190.0,0.64612213]
[1738632631950,0.41069724,101210.0,101190.0,0.00022407]
[1738632632113,0.55891624,101210.0,101190.0,0.34610207]
[1738632632317,0.148221,101200.0,101190.0,0.14845607]
[1738632632595,1.648221,101200.0,101190.0,0.14845607]
[1738632632804,1.5,101200.0,101190.0,0.14845607]
[1738632633841,1.648221,101200.0,101190.0,0.14845607]
[1738632634071,1.5,101200.0,101190.0,0.14845607]
[1738632635809,1.648221,101200.0,101190.0,0.00022407]
[1738632635985,1.84931572,101200.0,101190.0,0.00022407]
[1738632636187,1.87796922,101200.0,101190.0,0.00022407]
[1738632636391,1.746821,101200.0,101190.0,0.00022407]
[1738632638595,1.87796922,101200.0,101190.0,0.00022407]
[1738632639011,1.746821,101200.0,101190.0,0.00022407]
[1738632640904,2.13046394,101200.0,101190.0,0.00022407]
[1738632641111,1.896821,101200.0,101190.0,0.00022407]
[1738632641336,2.00920606,101200.0,101190.0,0.00022407]
[1738632641543,0.68815428,101200.0,101190.0,0.00022407]
[1738632643365,0.69555428,101200.0,101190.0,0.00022407]
[1738632644132,0.54400606,101200.0,101190.0,0.00022407]
[1738632644338,0.53400606,101200.0,101190.0,0.00022407]
[1738632644531,0.50660606,101200.0,101190.0,0.00022407]
[1738632644932,0.495854,101200.0,101180.0,0.51279507]
[1738632645142,0.45502427,101210.0,101190.0,0.148235]
[1738632645474,0.345854,101200.0,101180.0,0.64594206]
[1738632645909,0.345854,101200.0,101180.0,0.49770406]
[1738632646068,0.345854,101200.0,101190.0,0.148235]
[1738632646275,0.148221,101200.0,101190.0,0.148235]
[1738632646855,0.19503106,101200.0,101180.0,0.49770406]
[1738632646994,0.345855,101200.0,101180.0,0.64594806]
[1738632647216,0.345855,101200.0,101190.0,0.148235]
[1738632647420,0.54349,101200.0,101180.0,0.44828606]
[1738632647618,0.345855,101200.0,101180.0,0.64594806]
[1738632648770,0.345855,101200.0,101170.0,0.272772]
[1738632648771,0.345888,101190.0,101170.0,0.395349]
[1738632648974,0.148235,101190.0,101180.0,0.14825]
[1738632649408,0.42906,101200.0,101180.0,0.345905]
[1738632649621,0.36886,101200.0,101190.0,0.148235]
[1738632649923,0.566495,101200.0,101180.0,0.345905]